fUST/lending_fUST_20241019
["ID","MTS","AMOUNT","RATE_DAILY","PERIOD"]
[340483049,1729291887511,-744.46,0.00019726,2]
[340483050,1729291887520,-670.38,0.00019726,2]
[340483051,1729291887529,-874.82,0.00019726,2]
[340483052,1729291887539,-500.0,0.00019726,2]
[340483053,1729291887548,-956.55,0.00019726,2]
[340483054,1729291887557,-500.0,0.00019726,2]
[340483055,1729291887567,-639.04,0.00019726,2]
[340483056,1729291887576,-831.11,0.00019726,2]
[340483057,1729291887586,-506.71,0.00019726,2]
[340483058,1729291887595,-1189.28,0.00019726,2]
[340483059,1729291887604,-544.67,0.00019726,2]
[340483060,1729291887615,-572.11,0.00019726,2]
[340483061,1729291887625,-861.55,0.00019726,2]
[340483062,1729291887634,-671.0,0.00019726,2]
[340483063,1729291887643,-1034.67,0.00019726,2]
[340483064,1729291887653,-1730.12,0.00019726,2]
[340483065,1729291887662,-1845.83,0.00019726,2]
[340483066,1729291887672,-1306.8,0.00019726,2]
[340483067,1729291887681,-680.84,0.00019726,2]
[340483068,1729291887690,-667.45,0.00019726,2]
[340483069,1729291887700,-856.47,0.00019726,2]
[340483070,1729291887710,-526.93670586,0.00019726,2]
[340483071,1729291887719,-853.95,0.00019726,2]
[340483072,1729291887729,-1778.08,0.00019726,2]
[340483073,1729291887739,-616.44,0.00019726,2]
[340483074,1729291887748,-2120.38,0.00019726,2]
[340483075,1729291887758,-407.13947706,0.00019726,2]
[340483076,1729291887767,-505.13,0.00019726,2]
[340483077,1729291887777,-638.22,0.00019726,2]
[340483078,1729291887786,-552.77,0.00019726,2]
[340483079,1729291887795,-1243.09,0.00019726,2]
[340483080,1729291887804,-446.8504764,0.00019726,2]
[340483081,1729291887813,-1877.71,0.00019726,2]
[340483082,1729291887823,-904.73,0.00019726,2]
[340483083,1729291887832,-1020.94,0.00019726,2]
[340483084,1729291887841,-853.41,0.00019726,2]
[340483085,1729291887850,-512.28,0.00019726,2]
[340483086,1729291887860,-806.34,0.00019726,2]
[340483087,1729291887869,-1095.06,0.00019726,2]
[340483088,1729291887878,-1119.35,0.00019726,2]
[340483089,1729291887888,-747.11,0.00019726,2]
[340483090,1729291887897,-668.58,0.00019726,2]
[340483091,1729291887907,-1416.54,0.00019726,2]
[340483092,1729291887916,-846.55,0.00019726,2]
[340483093,1729291887926,-1243.22,0.00019726,2]
[340483094,1729291887935,-514.85,0.00019726,2]
[340483095,1729291887944,-669.01,0.00019726,2]
[340483096,1729291887954,-673.18,0.00019726,2]
[340483097,1729291887963,-539.5,0.00019726,2]
[340483098,1729291887972,-542.97,0.00019726,2]
[340483099,1729291887981,-936.78,0.00019726,2]
[340483100,1729291887991,-726.96,0.00019726,2]
[340483101,1729291888000,-971.17,0.00019726,2]
[340483102,1729291888010,-5586.53,0.00019726,2]
[340483103,1729291888019,-1862.55,0.00019726,2]
[340483104,1729291888028,-550.21,0.00019726,2]
[340483105,1729291888037,-1290.46,0.00019726,2]
[340483106,1729291888047,-742.47,0.00019726,2]
[340483107,1729291888060,-1419.77,0.00019726,2]
[340483108,1729291888071,-1014.6,0.00019726,2]
[340483109,1729291888082,-505.28,0.00019726,2]
[340483110,1729291888091,-768.91,0.00019726,2]
[340483111,1729291888102,-500.0,0.00019726,2]
[340483112,1729291888111,-556.94,0.00019726,2]
[340483113,1729291888122,-1030.46,0.00019726,2]
[340483114,1729291888134,-1160.09,0.00019726,2]
[340483115,1729291888145,-994.82,0.00019726,2]
[340483116,1729291888155,-515.12,0.00019726,2]
[340483117,1729291888166,-883.44,0.00019726,2]
[340483118,1729291888178,-1048.82,0.00019726,2]
[340483119,1729291888189,-43835.78,0.00019726,2]
[340483120,1729291888198,-739.77,0.00019726,2]
[340483121,1729291888208,-1185.43,0.00019726,2]
[340483122,1729291888219,-5542.64,0.00019726,2]
[340483123,1729291888231,-535.73,0.00019726,2]
[340483124,1729291888241,-1152.0,0.00019742,2]
[340483125,1729291888251,-248.763763,0.00019783,2]
[340483126,1729291888262,-316.620443,0.00019783,2]
[340483127,1729291888273,-1105.406529,0.00019783,2]
[340483128,1729291888283,-666.746809,0.00019783,2]
[340483129,1729291888295,-306.0,0.00019836,2]
[340483130,1729291888305,-153.0,0.00019836,2]
[340483131,1729291888315,-153.0,0.00019836,2]
[340483132,1729291888325,-527.0,0.0001991,2]
[340483133,1729291888335,-1157.0,0.0001991,2]
[340483134,1729291888345,-1805.0,0.0001991,2]
[340483135,1729291888354,-2496.89707295,0.00019926,2]
[340483136,1729291888364,-500.0,0.0002,2]
[340483137,1729291888376,-1000.0,0.0002,2]
[340483138,1729291888386,-728.70651153,0.0002,2]
[340483139,1729291888398,-518.68042152,0.0002,2]
[340483140,1729291888409,-706.40965119,0.0002,2]
[340483141,1729291888422,-1057.00990819,0.0002,2]
[340483142,1729291888433,-671.80640186,0.0002,2]
[340483143,1729291888444,-629.49364132,0.0002,2]
[340483144,1729291888453,-607.55363434,0.0002,2]
[340483145,1729291888463,-649.60114083,0.0002,2]
[340483146,1729291888472,-674.6117254,0.0002,2]
[340483147,1729291888481,-829.89112358,0.0002,2]
[340483148,1729291888492,-663.54654173,0.0002,2]
[340483149,1729291888502,-614.47286702,0.0002,2]
[340483150,1729291888513,-580.58216849,0.0002,2]
[340483151,1729291888525,-949.58556207,0.0002,2]
[340483152,1729291888537,-701.68067556,0.0002,2]
[340483153,1729291888548,-833.22650836,0.0002,2]
[340483154,1729291888560,-633.14221346,0.0002,2]
[340483155,1729291888571,-906.71126646,0.0002,2]
[340483156,1729291888582,-673.90114008,0.0002,2]
[340483157,1729291888592,-748.14549715,0.0002,2]
[340483158,1729291888601,-627.02435707,0.0002,2]
[340483159,1729291888611,-518.7703024,0.0002,2]
[340483160,1729291888624,-941.10191367,0.0002,2]
[340483161,1729291888635,-1590.72864767,0.0002,2]
[340483162,1729291888646,-545.83821202,0.0002,2]
[340483163,1729291888657,-655.42231359,0.0002,2]
[340483164,1729291888669,-1005.98404706,0.0002,2]
[340483165,1729291888678,-561.00545906,0.0002,2]
[340483166,1729291888687,-1346.02206107,0.0002,2]
[340483167,1729291888700,-808.56292794,0.0002,2]
[340483168,1729291888710,-958.52567138,0.0002,2]
[340483169,1729291888720,-725.11489249,0.0002,2]
[340483170,1729291888729,-607.00935171,0.0002,2]
[340483171,1729291888738,-995.49910817,0.0002,2]
[340483172,1729291888747,-1927.16193,0.0002,2]
[340483173,1729291888759,-684.82026234,0.0002,2]
[340483174,1729291888769,-633.34866332,0.0002,2]
[340483175,1729291888780,-659.86941441,0.0002,2]
[340483176,1729291888791,-607.15,0.0002,2]
[340483177,1729291888801,-582.58092574,0.0002,2]
[340483178,1729291888812,-981.61616732,0.0002,2]
[340483179,1729291888823,-276.99146152,0.0002,2]
[340483180,1729291888835,-1829.72564393,0.0002,2]
[340483181,1729291888845,-1010.4263148,0.0002,2]
[340483182,1729291888856,-794.26123723,0.0002,2]
[340483183,1729291888865,-178.26917229,0.0002,2]
[340483184,1729291888875,-962.666586,0.0002,2]
[340483185,1729291888885,-760.80005299,0.0002,2]
[340483186,1729291888896,-2750.58,0.0002,2]
[340483187,1729291888908,-744.62276275,0.0002,2]
[340483188,1729291888918,-670.58646672,0.0002,2]
[340483189,1729291888928,-874.93140489,0.0002,2]
[340483190,1729291888938,-206.94085312,0.0002,2]
[340483191,1729291888949,-956.58548447,0.0002,2]
[340483192,1729291888960,-231.112747,0.0002,2]
[340483193,1729291888971,-639.07973014,0.0002,2]
[340483194,1729291888981,-831.2535236,0.0002,2]
[340483195,1729291888991,-506.79469896,0.0002,2]
[340483196,1729291889000,-1189.4919239,0.0002,2]
[340483197,1729291889010,-544.79637075,0.0002,2]
[340483198,1729291889021,-572.23576733,0.0002,2]
[340483199,1729291889032,-861.77563854,0.0002,2]
[340483200,1729291889045,-671.10323192,0.0002,2]
[340483201,1729291889057,-1034.80830651,0.0002,2]
[340483202,1729291889066,-1730.35347207,0.0002,2]
[340483203,1729291889075,-1845.87965023,0.0002,2]
[340483204,1729291889085,-1306.90120502,0.0002,2]
[340483205,1729291889095,-681.07323679,0.0002,2]
[340483206,1729291889104,-667.6042077,0.0002,2]
[340483207,1729291889113,-856.57,0.0002,2]
[340483208,1729291889122,-854.09975817,0.0002,2]
[340483209,1729291889132,-1778.25973263,0.0002,2]
[340483210,1729291889141,-616.57781122,0.0002,2]
[340483211,1729291889151,-2120.46695924,0.0002,2]
[340483212,1729291889160,-505.31296777,0.0002,2]
[340483213,1729291889171,-638.22596177,0.0002,2]
[340483214,1729291889180,-552.79409942,0.0002,2]
[340483215,1729291889189,-1243.25488193,0.0002,2]
[340483216,1729291889198,-1877.74591671,0.0002,2]
[340483217,1729291889208,-904.83510715,0.0002,2]
[340483218,1729291889217,-1021.09276227,0.0002,2]
[340483219,1729291889227,-853.41478314,0.0002,2]
[340483220,1729291889236,-512.50662752,0.0002,2]
[340483221,1729291889245,-806.50141871,0.0002,2]
[340483222,1729291889254,-1095.28257883,0.0002,2]
[340483223,1729291889264,-1119.46849085,0.0002,2]
[340483224,1729291889274,-747.33770491,0.0002,2]
[340483225,1729291889283,-668.68526269,0.0002,2]
[340483226,1729291889293,-1416.77020854,0.0002,2]
[340483227,1729291889303,-846.61382896,0.0002,2]
[340483228,1729291889312,-1243.43643037,0.0002,2]
[340483229,1729291889321,-514.96361953,0.0002,2]
[340483230,1729291889330,-669.1282419,0.0002,2]
[340483231,1729291889340,-673.34115354,0.0002,2]
[340483232,1729291889350,-539.52370652,0.0002,2]
[340483233,1729291889359,-543.19258073,0.0002,2]
[340483234,1729291889369,-936.96,0.0002,2]
[340483235,1729291889379,-727.08334248,0.0002,2]
[340483236,1729291889390,-971.21279898,0.0002,2]
[340483237,1729291889400,-5586.71518663,0.0002,2]
[340483238,1729291889409,-1862.71054606,0.0002,2]
[340483239,1729291889418,-550.26703777,0.0002,2]
[340483240,1729291889428,-1290.50513313,0.0002,2]
[340483241,1729291889437,-742.65351467,0.0002,2]
[340483242,1729291889446,-1419.83157114,0.0002,2]
[340483243,1729291889456,-1014.63875757,0.0002,2]
[340483244,1729291889467,-505.36287114,0.0002,2]
[340483245,1729291889476,-769.02088926,0.0002,2]
[340483246,1729291889485,-409.11411483,0.0002,2]
[340483247,1729291889495,-557.16844683,0.0002,2]
[340483248,1729291889504,-1030.58798315,0.0002,2]
[340483249,1729291889513,-1160.26036733,0.0002,2]
[340483250,1729291889522,-994.9775752,0.0002,2]
[340483251,1729291889531,-515.27797415,0.0002,2]
[340483252,1729291889540,-883.67745921,0.0002,2]
[340483253,1729291889550,-1048.84637933,0.0002,2]
[340483254,1729291889559,-43835.90879899,0.0002,2]
[340483255,1729291889569,-739.84158455,0.0002,2]
[340483256,1729291889579,-1185.57877104,0.0002,2]
[340483257,1729291889588,-5542.84491568,0.0002,2]
[340483258,1729291889597,-535.7871593,0.0002,2]
[340483259,1729291889607,-1000.0,0.0002,2]
[340483260,1729291889617,-248.763763,0.00020028,2]
[340483261,1729291889627,-316.620443,0.00020028,2]
[340483262,1729291889636,-1105.406529,0.00020028,2]
[340483263,1729291889646,-666.746809,0.00020028,2]
[340483264,1729291889655,-250.0,0.00020187,2]
[340483265,1729291889664,-248.763763,0.00020272,2]
[340483266,1729291889674,-316.620443,0.00020272,2]
[340483267,1729291889684,-1105.406529,0.00020272,2]
[340483268,1729291889693,-666.746809,0.00020272,2]
[340483269,1729291889702,-248.763763,0.00020516,2]
[340483270,1729291889711,-316.620443,0.00020516,2]
[340483271,1729291889720,-1105.406529,0.00020516,2]
[340483272,1729291889729,-666.746809,0.00020516,2]
[340483273,1729291889739,-256.684486,0.00020548,2]
[340483274,1729291889748,-3000.0,0.00021,2]
[340483275,1729291889758,-3000.0,0.0002101,2]
[340483276,1729291889767,-3000.0,0.0002102,2]
[340483277,1729291889777,-3000.0,0.0002103,2]
[340483278,1729291889786,-3000.0,0.0002104,2]
[340483279,1729291889795,-3000.0,0.0002105,2]
[340483280,1729291889804,-3000.0,0.0002106,2]
[340483281,1729291889814,-3000.0,0.0002107,2]
[340483282,1729291889823,-3000.0,0.0002108,2]
[340483283,1729291889833,-677.12611083,0.00021089,2]
[340483284,1729291889842,-3000.0,0.0002109,2]
[340483285,1729291889851,-3000.0,0.000211,2]
[340483286,1729291889860,-3000.0,0.0002111,2]
[340483287,1729291889870,-3000.0,0.0002112,2]
[340483288,1729291889880,-3833.811399,0.0002113,2]
[340483289,1729291889889,-1613.0,0.00021636,2]
[340483290,1729291889899,-160.75037099,0.00021669,2]
[340483291,1729291889909,-2500.0,0.00021917,2]
[340483292,1729291889918,-500.0,0.00021917,2]
[340483293,1729291889928,-500.0,0.00021917,2]
[340483294,1729291889938,-500.0,0.00021917,2]
[340483295,1729291889947,-500.0,0.00021917,2]
[340483296,1729291889956,-500.0,0.00021917,2]
[340483297,1729291889966,-500.0,0.00021917,2]
[340483298,1729291889976,-560.63650463,0.00021917,2]
[340483299,1729291889985,-2036.47,0.00021917,2]
[340483300,1729291889996,-2036.47,0.00021917,2]
[340483301,1729291890006,-2036.47,0.00021917,2]
[340483302,1729291890015,-2036.47,0.00021917,2]
[340483303,1729291890025,-2036.47,0.00021917,2]
[340483304,1729291890035,-2036.47,0.00021917,2]
[340483305,1729291890045,-2036.47,0.00021917,2]
[340483306,1729291890054,-2036.47,0.00021917,2]
[340483307,1729291890064,-2036.47,0.00021917,2]
[340483308,1729291890074,-2036.47,0.00021917,2]
[340483309,1729291890084,-2036.47,0.00021917,2]
[340483310,1729291890094,-2036.47,0.00021917,2]
[340483311,1729291890103,-2036.47,0.00021917,2]
[340483312,1729291890113,-2036.47,0.00021917,2]
[340483313,1729291890123,-2036.47,0.00021917,2]
[340483314,1729291890133,-2036.47,0.00021917,2]
[340483315,1729291890142,-2036.47,0.00021917,2]
[340483316,1729291890152,-2036.47,0.00021917,2]
[340483317,1729291890162,-2036.47,0.00021917,2]
[340483318,1729291890171,-2036.47,0.00021917,2]
[340483319,1729291890183,-2036.47,0.00021917,2]
[340483320,1729291890192,-2036.47,0.00021917,2]
[340483321,1729291890202,-2036.47,0.00021917,2]
[340483322,1729291890212,-2036.64973184,0.00021917,2]
[340483323,1729291890222,-500.0,0.00021917,2]
[340483324,1729291890231,-500.0,0.00021917,2]
[340483325,1729291890243,-500.0,0.00021917,2]
[340483326,1729291890253,-500.0,0.00021917,2]
[340483327,1729291890264,-363.5751321,0.00021917,2]
[340483328,1729291890274,-5000.0,0.00021917,2]
[340483329,1729291890283,-5000.0,0.00021917,2]
[340483330,1729291890293,-5000.0,0.00021917,2]
[340483331,1729291890304,-5000.0,0.00021917,2]
[340483332,1729291890314,-5000.0,0.00021917,2]
[340483333,1729291890326,-5000.0,0.00021917,2]
[340483334,1729291890336,-5000.0,0.00021917,2]
[340483335,1729291890346,-5000.0,0.00021917,2]
[340483336,1729291890357,-5000.0,0.00021917,2]
[340483337,1729291890366,-5000.0,0.00021917,2]
[340483338,1729291890375,-5000.0,0.00021917,2]
[340483339,1729291890385,-5000.0,0.00021917,2]
[340483340,1729291890395,-5000.0,0.00021917,2]
[340483341,1729291890404,-5000.0,0.00021917,2]
[340483342,1729291890413,-5000.0,0.00021917,2]
[340483343,1729291890425,-5000.0,0.00021917,2]
[340483344,1729291890436,-5000.0,0.00021917,2]
[340483345,1729291890447,-5000.0,0.00021917,2]
[340483346,1729291890456,-5000.0,0.00021917,2]
[340483347,1729291890468,-5000.0,0.00021917,2]
[340483348,1729291890478,-632.94343498,0.00021917,2]
[340483349,1729291890488,-166.666666,0.00021918,2]
[340483350,1729291890498,-255.64,0.00022,2]
[340483351,1729291890507,-997.38,0.000224,7]
[340483352,1729291890517,-166.666666,0.00022431,2]
[340483353,1729291890526,-527.0,0.0002291,2]
[340483354,1729291890535,-1157.0,0.0002291,2]
[340483355,1729291890546,-1805.0,0.0002291,2]
[340483356,1729291890555,-166.666666,0.00022944,2]
[340483357,1729291890565,-221.0,0.00023,2]
[340483358,1729291890574,-2496.89707295,0.00023105,2]
[340483359,1729291890584,-210.5530868,0.00023261,2]
[340483360,1729291890593,-210.5530868,0.00023261,2]
[340483361,1729291890602,-210.5530868,0.00023261,2]
[340483362,1729291890612,-414.6078501,0.00023261,2]
[340483363,1729291890624,-153.0,0.00023261,2]
[340483364,1729291890633,-306.0,0.00023261,2]
[340483365,1729291890643,-154.030527,0.00023261,2]
[340483366,1729291890780,-414.6078501,0.00023261,2]
[340483367,1729291890807,-210.5530868,0.00023261,2]
[340483368,1729291890816,-302.1038448,0.00023261,2]
[340483369,1729291890826,-153.0,0.00023261,2]
[340483370,1729291890836,-153.0,0.00023261,2]
[340483371,1729291890846,-302.1038448,0.00023261,2]
[340483372,1729291890855,-414.6078501,0.00023261,2]
[340483373,1729291890864,-153.0,0.00023261,2]
[340483374,1729291890874,-414.6078501,0.00023261,2]
[340483375,1729291890884,-414.6078501,0.00023261,2]
[340483376,1729291890893,-1716.85293197,0.00023287,2]
[340483377,1729291890903,-221.0,0.00023288,2]
[340483378,1729291890913,-166.666666,0.00023456,2]
[340483379,1729291890922,-677.12611083,0.00023544,2]
[340483380,1729291890932,-2258.0,0.00023711,2]
[340483381,1729291890941,-166.666666,0.00023969,2]
[340483382,1729291890951,-210.5530868,0.00024083,2]
[340483383,1729291890961,-550.0714867,0.00024083,2]
[340483384,1729291890970,-414.6078501,0.00024083,2]
[340483385,1729291890980,-414.6078501,0.00024083,2]
[340483386,1729291890990,-414.6078501,0.00024083,2]
[340483387,1729291890999,-414.6078501,0.00024083,2]
[340483388,1729291891009,-414.6078501,0.00024083,2]
[340483389,1729291891018,-761.8712995,0.00024083,2]
[340483390,1729291891028,-221.0,0.00024164,2]
[340483391,1729291891038,-166.666666,0.00024482,2]
[340483392,1729291891048,-200.0,0.00024657,2]
[340483393,1729291891058,-200.0,0.00024657,2]
[340483394,1729291891068,-200.0,0.00024657,2]
[340483395,1729291891078,-200.0,0.00024657,2]
[340483396,1729291891090,-203.03455862,0.00024657,2]
[340483397,1729291891099,-500.0,0.00024657,2]
[340483398,1729291891109,-500.0,0.00024657,2]
[340483399,1729291891119,-500.0,0.00024657,2]
[340483400,1729291891128,-1500.0,0.00024657,2]
[340483401,1729291891137,-549.42642399,0.00024657,2]
[340483402,1729291891148,-660.0,0.00024658,2]
[340483403,1729291891158,-200.0,0.00024658,15]
[340483404,1729291891167,-380.0,0.00024658,2]
[340483405,1729291891179,-500.0,0.00024658,2]
[340483406,1729291891189,-500.0,0.00024658,2]
[340483407,1729291891200,-291.86772395,0.00024658,2]
[340483408,1729291891211,-3664.19,0.000247,14]
[340483409,1729291891222,-2547.07,0.000247,14]
[340483410,1729291891231,-300.0,0.00025,2]
[340483411,1729291891241,-300.0,0.00025,2]
[340483412,1729291891251,-255.5,0.00025,2]
[340483413,1729291891262,-1000.0,0.00025,2]
[340483414,1729291891271,-11075.0973006,0.00025,3]
[340483415,1729291891281,-303.05757821,0.00025,2]
[340483416,1729291891291,-303.05454739,0.00025,2]
[340483417,1729291891302,-372.298,0.0002525,9]
[340483418,1729291891311,-202.75873593,0.0002525,9]
[340483419,1729291891321,-303.05757821,0.0002525,2]
[340483420,1729291891331,-303.05454739,0.0002525,2]
[340483421,1729291891340,-225.0,0.00025373,2]
[340483422,1729291891350,-303.05757821,0.000255,2]
[340483423,1729291891359,-303.05454739,0.000255,2]
[340483424,1729291891369,-1500.0,0.00025616,3]
[340483425,1729291891379,-303.05757821,0.0002575,2]
[340483426,1729291891389,-303.05454739,0.0002575,2]
[340483427,1729291891399,-527.0,0.0002591,2]
[340483428,1729291891408,-1157.0,0.0002591,2]
[340483429,1729291891418,-1805.0,0.0002591,2]
[340483430,1729291891433,-3162.0,0.00025985,2]
[340483431,1729291891443,-677.12611083,0.00026,2]
[340483432,1729291891452,-300.0,0.00026,2]
[340483433,1729291891462,-2500.0,0.00026,2]
[340483434,1729291891471,-303.05757821,0.00026,2]
[340483435,1729291891481,-303.05454739,0.00026,2]
[340483436,1729291891490,-153.0,0.00026078,2]
[340483437,1729291891501,-153.0,0.00026078,2]
[340483438,1729291891510,-153.0,0.00026078,2]
[340483439,1729291891520,-454.58636732,0.0002625,4]
[340483440,1729291891531,-454.58182109,0.0002625,4]
[340483441,1729291891540,-2496.89707295,0.00026285,2]
[340483442,1729291891550,-327.729617,0.00026388,2]
[340483443,1729291891561,-454.58636732,0.000265,4]
[340483444,1729291891572,-454.58182109,0.000265,4]
[340483445,1729291891582,-1500.0,0.00026575,4]
[340483446,1729291891593,-166.08,0.000266,31]
[340483447,1729291891603,-250.0,0.00026676,2]
[340483448,1729291891612,-454.58636732,0.0002675,4]
[340483449,1729291891624,-454.58182109,0.0002675,4]
[340483450,1729291891634,-3664.19,0.000268,14]
[340483451,1729291891643,-2547.07,0.000269,14]
[340483452,1729291891652,-300.0,0.00027,2]
[340483453,1729291891662,-454.58636732,0.00027,4]
[340483454,1729291891674,-454.58182109,0.00027,4]
[340483455,1729291891684,-221.0,0.00027064,2]
[340483456,1729291891693,-153.0,0.00027123,2]
[340483457,1729291891702,-454.58636732,0.0002725,4]
[340483458,1729291891712,-454.58182109,0.0002725,4]
[340483459,1729291891721,-500.0,0.000273,30]
[340483460,1729291891731,-500.1993356,0.000273,30]
[340483461,1729291891740,-500.0,0.000273,30]
[340483462,1729291891750,-800.0,0.000273,30]
[340483463,1729291891760,-800.0,0.000273,30]
[340483464,1729291891770,-800.0,0.000273,30]
[340483465,1729291891779,-800.0,0.000273,30]
[340483466,1729291891789,-800.0,0.000273,30]
[340483467,1729291891799,-800.0,0.000273,30]
[340483468,1729291891809,-800.0,0.000273,30]
[340483469,1729291891818,-800.0,0.000273,30]
[340483470,1729291891828,-800.0,0.000273,30]
[340483471,1729291891837,-800.0,0.000273,30]
[340483472,1729291891847,-800.0,0.000273,30]
[340483473,1729291891857,-1600.0,0.000273,30]
[340483474,1729291891866,-800.0,0.000273,30]
[340483475,1729291891875,-1000.0,0.000273,30]
[340483476,1729291891885,-1600.0,0.000273,30]
[340483477,1729291891894,-1600.0,0.000273,30]
[340483478,1729291891904,-1600.0,0.000273,30]
[340483479,1729291891913,-1600.0,0.000273,30]
[340483480,1729291891922,-1600.0,0.000273,30]
[340483481,1729291891932,-1600.0,0.000273,30]
[340483482,1729291891942,-1600.0,0.000273,30]
[340483483,1729291891951,-1100.0,0.000273,30]
[340483484,1729291891961,-1600.0,0.000273,30]
[340483485,1729291891970,-1600.0,0.000273,30]
[340483486,1729291891980,-1600.0,0.000273,30]
[340483487,1729291891989,-1100.0,0.000273,30]
[340483488,1729291891998,-1600.0,0.000273,30]
[340483489,1729291892007,-1100.0,0.000273,30]
[340483490,1729291892017,-1600.0,0.000273,30]
[340483491,1729291892026,-1100.0,0.000273,30]
[340483492,1729291892035,-1800.0,0.000273,30]
[340483493,1729291892044,-1100.0,0.000273,30]
[340483494,1729291892054,-1100.0,0.000273,30]
[340483495,1729291892063,-1100.0,0.000273,30]
[340483496,1729291892072,-1100.0,0.000273,30]
[340483497,1729291892081,-1100.0,0.000273,30]
[340483498,1729291892091,-1100.0,0.000273,30]
[340483499,1729291892101,-1100.0,0.000273,30]
[340483500,1729291892111,-1100.0,0.000273,30]
[340483501,1729291892121,-1400.0,0.000273,30]
[340483502,1729291892131,-500.0,0.000273,30]
[340483503,1729291892142,-500.0,0.000273,30]
[340483504,1729291892152,-500.0,0.000273,30]
[340483505,1729291892162,-500.0,0.000273,30]
[340483506,1729291892172,-500.0,0.000273,30]
[340483507,1729291892181,-500.0,0.000273,30]
[340483508,1729291892191,-1100.0,0.000273,30]
[340483509,1729291892201,-1100.0,0.000273,30]
[340483510,1729291892211,-1100.0,0.000273,30]
[340483511,1729291892220,-1100.0,0.000273,30]
[340483512,1729291892230,-1100.0,0.000273,30]
[340483513,1729291892240,-1100.0,0.000273,30]
[340483514,1729291892250,-1100.0,0.000273,30]
[340483515,1729291892259,-500.0,0.000273,30]
[340483516,1729291892269,-1100.0,0.000273,30]
[340483517,1729291892279,-500.0,0.000273,30]
[340483518,1729291892288,-1100.0,0.000273,30]
[340483519,1729291892298,-1100.0,0.000273,30]
[340483520,1729291892308,-1100.0,0.000273,30]
[340483521,1729291892319,-500.0,0.000273,30]
[340483522,1729291892329,-1100.0,0.000273,30]
[340483523,1729291892338,-500.0,0.000273,30]
[340483524,1729291892348,-1100.0,0.000273,30]
[340483525,1729291892358,-500.0,0.000273,30]
[340483526,1729291892368,-1500.0,0.000273,30]
[340483527,1729291892378,-500.0,0.000273,30]
[340483528,1729291892387,-500.0,0.000273,30]
[340483529,1729291892398,-500.0,0.000273,30]
[340483530,1729291892407,-500.0,0.000273,30]
[340483531,1729291892417,-500.0,0.000273,30]
[340483532,1729291892432,-500.0,0.000273,30]
[340483533,1729291892442,-500.0,0.000273,30]
[340483534,1729291892451,-500.0,0.000273,30]
[340483535,1729291892461,-700.0,0.000273,30]
[340483536,1729291892471,-166.08,0.000273,31]
[340483537,1729291892483,-166.08,0.000273,31]
[340483538,1729291892495,-698.53,0.00027397,7]
[340483539,1729291892506,-698.53,0.00027397,7]
[340483540,1729291892518,-698.53,0.00027397,7]
[340483541,1729291892528,-698.53,0.00027397,7]
[340483542,1729291892537,-698.53,0.00027397,7]
[340483543,1729291892547,-698.53,0.00027397,7]
[340483544,1729291892557,-698.53,0.00027397,7]
[340483545,1729291892566,-698.53,0.00027397,7]
[340483546,1729291892577,-698.53,0.00027397,7]
[340483547,1729291892587,-698.53,0.00027397,7]
[340483548,1729291892597,-698.53,0.00027397,7]